bitfinex-derivatives/quotes_SOLF0:USTF0_20260316
["timestamp","ask_amount","ask_price","bid_price","bid_amount"]
[1773621358544,17.63803989,92.353,92.304,9.748]
[1773621358744,50.21803989,92.397,92.303,1.58603614]
[1773621358943,17.63803989,92.395,92.304,1.58603614]
[1773621359350,17.63803989,92.374,92.305,1.42259706]
[1773621359846,17.63803989,92.374,92.308,10.02035518]
[1773621360249,17.63803989,92.373,92.317,11.05904522]
[1773621361455,17.63803989,92.373,92.322,0.90287587]
[1773621361745,17.63803989,92.373,92.326,10.02035518]
[1773621361950,17.63803989,92.373,92.315,10.02035518]
[1773621362145,17.63803989,92.371,92.315,10.02035518]
[1773621362352,17.63803989,92.371,92.314,10.02035518]
[1773621362649,17.63803989,92.371,92.31,10.02035518]
[1773621363445,17.63803989,92.371,92.309,10.02035518]
[1773621363647,17.63803989,92.368,92.316,9.747]
[1773621364446,62.0,92.36,92.316,9.747]
[1773621365049,9.742,92.367,92.308,10.02035518]
[1773621365050,17.63803989,92.359,92.308,10.02035518]
[1773621365351,17.63803989,92.359,92.309,10.02035518]
[1773621366150,17.63803989,92.359,92.319,9.747]
[1773621366353,17.63803989,92.359,92.308,10.02035518]
[1773621367348,17.63803989,92.359,92.322,9.747]
[1773621367650,17.63803989,92.359,92.3,10.02035518]
[1773621367850,17.63803989,92.349,92.284,10.02035518]
[1773621368051,17.63803989,92.332,92.285,9.75]
[1773621368747,17.63803989,92.349,92.293,9.75]
[1773621369648,17.63803989,92.349,92.302,9.749]
[1773621370051,17.63803989,92.349,92.284,10.02035518]
[1773621370246,17.63803989,92.349,92.28,10.02035518]
[1773621370650,17.63803989,92.349,92.299,9.749]
[1773621374648,17.63803989,92.349,92.309,9.748]
[1773621377960,17.63803989,92.373,92.309,9.748]
[1773621378262,17.63803989,92.371,92.309,9.748]
[1773621378662,17.63803989,92.371,92.317,9.747]
[1773621379063,17.63803989,92.369,92.317,9.747]
[1773621379762,17.63803989,92.366,92.317,9.747]
[1773621380763,17.63803989,92.409,92.32,10.01469517]
[1773621380967,17.63803989,92.399,92.317,10.01469517]
[1773621381162,9.742,92.366,92.311,10.01469517]
[1773621381361,17.63803989,92.365,92.297,10.01469517]
[1773621381555,17.63803989,92.365,92.282,13.15854966]
[1773621381556,17.63803989,92.365,92.296,10.01469517]
[1773621381865,17.63803989,92.351,92.298,9.749]
[1773621382369,17.63803989,92.351,92.298,19.76369517]
[1773621382667,17.63803989,92.351,92.307,9.748]
[1773621383663,17.63803989,92.351,92.315,9.747]
[1773621383860,17.39706179,92.369,92.315,9.747]
[1773621384671,17.40252228,92.367,92.315,9.747]
[1773621385160,17.40252228,92.365,92.311,10.01469517]
[1773621385360,17.40252228,92.365,92.315,10.01469517]
[1773621385564,17.40252228,92.365,92.316,10.01469517]
[1773621385765,17.31995325,92.364,92.317,9.747]
[1773621386073,17.31995325,92.364,92.315,10.01469517]
[1773621386274,17.31995325,92.364,92.296,13.15854966]
[1773621386567,14.36795812,92.345,92.294,9.749]
[1773621388072,14.36795812,92.345,92.285,13.15854966]
[1773621388370,14.36795812,92.342,92.286,13.15854966]
[1773621388770,14.36795812,92.342,92.278,6.16976038]
[1773621389670,14.36795812,92.338,92.278,6.16976038]
[1773621390072,14.36795812,92.324,92.271,13.15854966]
[1773621390274,14.36795812,92.324,92.269,13.15854966]
[1773621390474,14.36795812,92.324,92.26,9.753]
[1773621391573,14.36795812,92.319,92.26,9.753]
[1773621392976,14.36795812,92.319,92.264,9.753]
[1773621393275,14.36795812,92.319,92.265,5.56777331]
[1773621394770,14.36795812,92.319,92.27,9.752]
[1773621395672,14.36795812,92.319,92.28,9.751]
[1773621396077,9.744,92.345,92.28,9.751]
[1773621396378,14.36795812,92.339,92.28,9.751]
[1773621396772,14.36795812,92.339,92.281,4.99418802]
[1773621396967,14.36795812,92.339,92.282,9.751]
[1773621397170,14.36795812,92.339,92.283,4.99418802]
[1773621397876,14.36795812,92.337,92.283,4.99418802]
[1773621398075,14.36795812,92.337,92.283,14.74518802]
[1773621398276,14.36795812,92.303,92.259,13.15854966]
[1773621398476,14.36795812,92.303,92.244,13.15854966]
[1773621398676,14.36795812,92.303,92.242,13.15854966]
[1773621399171,14.36795812,92.303,92.241,13.15854966]
[1773621400075,14.36795812,92.302,92.241,13.15854966]
[1773621400379,14.36795812,92.299,92.223,34.86]
[1773621401579,14.36795812,92.289,92.234,9.756]
[1773621402181,14.36795812,92.287,92.234,9.756]
[1773621403177,14.36795812,92.303,92.235,4.28969089]
[1773621403376,14.36795812,92.339,92.242,4.14485444]
[1773621403573,9.745,92.337,92.248,4.14485444]
[1773621403779,14.36795812,92.336,92.285,9.75]
[1773621404681,14.36795812,92.355,92.295,9.749]
[1773621405182,14.36795812,92.35,92.285,9.75]
[1773621406180,9.744,92.346,92.285,9.75]
[1773621406382,14.36795812,92.345,92.285,9.75]
[1773621407580,24.11195812,92.343,92.285,9.75]
[1773621407783,14.36795812,92.342,92.295,9.749]
[1773621413782,14.36795812,92.342,92.279,2.56631866]
[1773621414986,9.745,92.34,92.28,9.751]
[1773621415186,12.24199326,92.339,92.28,9.751]
[1773621415687,12.24199326,92.339,92.279,2.56631866]
[1773621416485,12.24199326,92.339,92.28,1.93312504]
[1773621416691,12.24199326,92.339,92.288,9.75]
[1773621417391,12.24199326,92.355,92.294,1.81693269]
[1773621417783,12.24199326,92.355,92.28,21.19750286]
[1773621417987,12.24199326,92.353,92.294,9.749]
[1773621418387,12.24199326,92.353,92.299,9.749]
[1773621418991,9.743,92.352,92.295,1.69834718]
[1773621419188,12.24199326,92.351,92.279,1.69834718]
[1773621420594,12.7120105,92.327,92.271,9.752]
[1773621420796,12.7120105,92.327,92.267,13.15854966]
[1773621420987,12.7120105,92.327,92.268,13.42777512]
[1773621421189,12.7120105,92.327,92.269,0.26922546]
[1773621421592,12.7120105,92.327,92.281,9.751]
[1773621422593,12.7120105,92.327,92.265,13.15854966]
[1773621422794,12.7120105,92.327,92.258,13.15854966]
[1773621423296,12.7120105,92.327,92.259,13.15854966]
[1773621423599,12.87307762,92.322,92.263,9.753]
[1773621423896,12.87307762,92.322,92.253,13.15854966]
[1773621424095,12.87307762,92.32,92.229,13.15854966]
[1773621424496,32.58,92.321,92.213,34.68]
[1773621424497,12.87209881,92.3,92.227,13.15854966]
[1773621424796,12.87209881,92.3,92.223,13.15854966]
[1773621425700,12.85066676,92.293,92.233,9.756]
[1773621426100,8.05357184,92.32,92.223,13.15854966]
[1773621426398,12.85066676,92.317,92.239,13.15854966]
[1773621426600,12.85066676,92.317,92.241,13.15854966]
[1773621426901,12.80550798,92.315,92.235,13.15854966]
[1773621427098,12.80550798,92.315,92.231,13.15854966]
[1773621427399,12.80550798,92.315,92.23,13.15854966]
[1773621428301,12.70631202,92.304,92.247,9.754]
[1773621429696,9.749,92.302,92.247,9.754]
[1773621429900,12.74791584,92.301,92.247,9.754]
[1773621432198,12.74791584,92.301,92.256,9.754]
[1773621432398,12.73742865,92.318,92.256,9.754]
[1773621432608,12.73742865,92.318,92.257,64.0]
[1773621432898,12.73742865,92.318,92.241,13.15854966]
[1773621433102,12.73742865,92.364,92.265,13.15854966]
[1773621433302,12.74087594,92.362,92.266,13.15854966]
[1773621433495,12.74087594,92.36,92.266,13.15854966]
[1773621434708,12.76009502,92.34,92.289,9.75]
[1773621435106,12.76009502,92.34,92.25,13.15854966]
[1773621435307,12.76009502,92.338,92.25,13.15854966]
[1773621435603,12.84159549,92.306,92.242,13.15854966]
[1773621435903,12.84159549,92.306,92.23,19.73782449]
[1773621435904,12.84159549,92.306,92.23,13.15854966]
[1773621436501,12.86060899,92.295,92.246,9.755]
[1773621436701,12.86060899,92.295,92.229,13.15854966]
[1773621437205,12.86060899,92.295,92.228,13.15854966]
[1773621437601,12.84316447,92.293,92.237,9.756]
[1773621437806,12.84316447,92.293,92.23,13.15854966]
[1773621438301,12.84316447,92.293,92.231,64.0]
[1773621439508,12.84316447,92.293,92.245,9.755]
[1773621440309,12.84316447,92.293,92.217,19.73782449]
[1773621440310,8.05357184,92.27,92.153,51.73459528]
[1773621440502,8.05357184,92.2,92.101,68.02459528]
[1773621440708,66.7,92.199,92.101,68.02459528]
[1773621440906,9.761,92.186,92.101,68.02459528]
[1773621441408,32.58,92.211,92.111,67.84573105]
[1773621442008,34.12,92.223,92.111,67.84573105]
[1773621442607,8.05357184,92.21,92.119,68.01943982]
[1773621443309,62.0,92.2,92.119,68.01943982]
[1773621443511,9.76,92.195,92.119,68.01943982]
[1773621444108,62.0,92.2,92.119,68.01943982]
[1773621445511,62.0,92.2,92.131,68.23547007]
[1773621445703,9.757,92.227,92.131,68.23547007]
[1773621446312,34.14,92.235,92.15,8.05357184]
[1773621446503,34.14,92.276,92.171,68.25531462]
[1773621446709,34.14,92.278,92.171,68.25531462]
[1773621447603,9.754,92.255,92.171,68.25531462]
[1773621448001,8.05357184,92.26,92.171,68.25531462]
[1773621448216,9.756,92.233,92.171,68.25531462]
[1773621448613,62.0,92.25,92.171,68.25531462]
[1773621449514,9.755,92.246,92.171,68.25531462]
[1773621450103,9.755,92.246,92.174,68.32920734]
[1773621450304,43.893,92.26,92.174,68.32920734]
[1773621450709,42.19357184,92.26,92.174,68.32920734]
[1773621452012,9.755,92.245,92.174,68.32920734]
[1773621452909,10.89920771,92.291,92.155,68.22596977]
[1773621452910,8.05357184,92.24,92.155,68.22596977]
[1773621453115,34.14,92.239,92.155,68.22596977]
[1773621453314,62.0,92.23,92.155,68.22596977]
[1773621453918,9.757,92.224,92.155,68.22596977]
[1773621454216,62.0,92.23,92.155,68.22596977]
[1773621454811,9.756,92.238,92.16,68.16764024]
[1773621456316,9.757,92.227,92.16,68.16764024]
[1773621456718,34.16,92.249,92.165,68.18788152]
[1773621457314,9.755,92.239,92.165,68.18788152]
[1773621457515,34.16,92.249,92.165,68.18788152]
[1773621457716,62.0,92.24,92.165,68.18788152]
[1773621457917,62.0,92.24,92.081,32.58]
[1773621457918,70.05357184,92.24,92.146,68.18781868]
[1773621458217,70.05357184,92.24,92.034,152.094]
[1773621458218,62.0,92.24,92.151,68.18781868]
[1773621458620,9.757,92.225,92.16,68.18813993]
[1773621459819,9.756,92.236,92.164,9.763]
[1773621460323,9.756,92.236,92.165,68.16788428]
[1773621461018,9.757,92.227,92.165,68.16788428]
[1773621464922,62.0,92.24,92.148,67.66798408]
[1773621465125,34.16,92.239,92.148,67.66798408]
[1773621465524,9.759,92.203,92.148,67.66798408]
[1773621471527,34.16,92.225,92.15,67.70338635]
[1773621471528,9.758,92.212,92.15,67.70338635]
[1773621473325,62.0,92.24,92.152,67.7017833]
[1773621473628,62.0,92.24,92.167,9.763]
[1773621473832,9.756,92.231,92.168,67.70325844]
[1773621474028,62.0,92.24,92.168,67.70325844]
[1773621474328,8.05357184,92.23,92.131,67.70325844]
[1773621474721,9.761,92.186,92.134,67.64750711]
[1773621477727,9.762,92.177,92.105,34.76]
[1773621477926,8.05357184,92.17,92.08,67.71624075]
[1773621478125,32.58,92.189,92.08,67.71624075]
[1773621478333,9.763,92.164,92.091,67.70906223]
[1773621479521,9.763,92.164,92.112,67.74657615]
[1773621483535,32.58,92.186,92.112,67.74657615]
[1773621484629,9.764,92.156,92.112,67.74657615]
[1773621495428,8.17709752,92.187,92.114,67.29320839]
[1773621495429,9.763,92.164,92.114,67.29320839]
[1773621495633,8.17709752,92.187,92.114,67.29320839]
[1773621495829,34.16,92.188,92.114,67.29320839]
[1773621496437,9.765,92.148,92.114,67.29320839]
[1773621496833,8.07606921,92.19,92.114,67.29320839]
[1773621496834,34.18,92.18,92.114,67.29320839]
[1773621497538,9.764,92.157,92.114,67.29320839]
[1773621498141,9.763,92.166,92.114,67.29320839]
[1773621499338,34.18,92.18,92.085,34.78]
[1773621499339,9.762,92.175,92.116,67.22070985]
[1773621499936,9.762,92.175,92.125,67.22070985]
[1773621500543,9.763,92.167,92.125,67.22070985]
[1773621503534,9.762,92.176,92.125,67.22070985]
[1773621503735,8.04769814,92.201,92.125,67.22070985]
[1773621503938,34.18,92.202,92.125,67.22070985]
[1773621504144,8.07606921,92.21,92.125,67.22070985]
[1773621504350,8.04769814,92.215,92.125,67.22070985]
[1773621504642,34.16,92.214,92.125,67.22070985]
[1773621505549,9.761,92.188,92.125,67.22070985]
[1773621505744,8.07606921,92.2,92.125,67.22070985]
[1773621508454,9.762,92.18,92.125,67.22070985]
[1773621508850,8.07606921,92.2,92.125,67.22070985]
[1773621509051,8.04769814,92.213,92.125,67.22070985]
[1773621509352,9.76,92.191,92.125,67.22070985]
[1773621509951,9.761,92.182,92.125,67.22070985]
[1773621512355,9.76,92.192,92.125,76.98770985]
[1773621513057,8.04769814,92.213,92.135,67.45795137]
[1773621513258,34.16,92.229,92.135,67.45795137]
[1773621513654,9.758,92.213,92.144,9.765]
[1773621513952,32.58,92.227,92.145,67.48412016]
[1773621514356,32.58,92.219,92.145,67.48412016]
[1773621514554,32.58,92.215,92.145,67.48412016]
[1773621514755,32.58,92.213,92.145,67.48412016]
[1773621514955,32.58,92.211,92.145,67.48412016]
[1773621515156,32.58,92.209,92.145,67.48412016]
[1773621515352,32.58,92.207,92.145,67.48412016]
[1773621515561,32.58,92.207,92.115,9.768]
[1773621515562,32.58,92.205,92.13,67.50841537]
[1773621515859,32.58,92.205,92.1,34.82]
[1773621515860,32.58,92.199,92.107,67.50841537]
[1773621516065,32.58,92.197,92.107,67.50841537]
[1773621516259,32.58,92.195,92.107,67.50841537]
[1773621516559,32.58,92.193,92.107,67.50841537]
[1773621516759,32.58,92.179,92.107,67.50841537]
[1773621517060,32.58,92.177,92.107,67.50841537]
[1773621517463,9.764,92.156,92.107,67.50841537]
[1773621520354,8.03465237,92.177,92.107,67.50841537]
[1773621520557,34.16,92.182,92.107,67.50841537]
[1773621520952,62.0,92.17,92.117,67.40650962]
[1773621523160,9.762,92.172,92.117,67.40650962]
[1773621523660,151.68,92.286,92.117,67.40650962]
[1773621523661,32.58,92.207,92.117,67.40650962]
[1773621523860,34.16,92.206,92.117,67.40650962]
[1773621524157,34.16,92.206,92.113,34.84]
[1773621524158,34.16,92.207,92.119,67.41445476]
[1773621525554,9.76,92.2,92.137,67.4598955]
[1773621526159,62.0,92.19,92.137,67.4598955]
[1773621528667,9.761,92.188,92.137,67.4598955]
[1773621533968,9.76,92.198,92.141,67.41225834]
[1773621535569,9.76,92.198,92.143,67.43995921]
[1773621536076,9.761,92.19,92.143,67.43995921]
[1773621536974,62.0,92.18,92.143,67.43995921]
[1773621538074,9.761,92.19,92.143,67.43995921]
[1773621540372,9.761,92.183,92.143,67.43995921]
[1773621540575,3.38979751,92.18,92.129,67.46273819]
[1773621541177,62.0,92.17,92.129,67.46273819]
[1773621543077,9.761,92.184,92.141,67.48269608]
[1773621543877,9.761,92.184,92.119,13.45219483]
[1773621543878,3.38979751,92.22,92.161,67.47444501]
[1773621544073,32.55,92.222,92.152,67.47444501]
[1773621544274,3.38979751,92.19,92.152,67.47444501]
[1773621544572,34.16,92.203,92.152,67.47444501]
[1773621546069,62.0,92.19,92.152,67.47444501]
[1773621547775,9.761,92.188,92.14,3.38979751]
[1773621547972,9.761,92.188,92.14,70.89435869]
[1773621548780,9.761,92.188,92.14,70.89410066]
[1773621549081,9.76,92.196,92.151,67.51931563]
[1773621549280,34.16,92.203,92.151,67.51931563]
[1773621551779,9.76,92.199,92.151,67.51931563]
[1773621552082,62.0,92.19,92.151,67.51931563]
[1773621553185,9.76,92.199,92.151,67.51931563]
[1773621553683,9.76,92.191,92.151,67.51931563]
[1773621556879,3.38953948,92.2,92.151,67.51931563]
[1773621557084,3.38953948,92.17,92.117,67.48612817]
[1773621557384,3.38953948,92.16,92.117,67.48612817]
[1773621557984,37.54953948,92.17,92.117,67.48612817]
[1773621559686,9.763,92.166,92.117,67.48612817]
[1773621560085,62.0,92.16,92.117,67.48612817]
[1773621560887,9.763,92.166,92.117,67.48612817]
[1773621563886,62.0,92.16,92.117,67.48612817]
[1773621565489,9.763,92.166,92.117,67.48612817]
[1773621565786,9.763,92.166,92.109,9.769]
[1773621565787,34.16,92.17,92.095,67.55378289]
[1773621566091,9.764,92.157,92.101,67.55378289]
[1773621566290,9.764,92.157,92.094,13.45219483]
[1773621566291,34.18,92.173,92.121,67.55089999]
[1773621567882,34.18,92.173,92.131,67.42480383]
[1773621568086,34.18,92.186,92.131,67.42480383]
[1773621568287,62.0,92.18,92.131,67.42480383]
[1773621568791,9.762,92.178,92.131,67.42480383]
[1773621568992,3.38953948,92.16,92.118,67.41069386]
[1773621569788,34.18,92.159,92.118,67.41069386]
[1773621570187,3.38953948,92.16,92.118,67.41069386]
[1773621570488,9.765,92.152,92.118,67.41069386]
[1773621572794,37.56953948,92.16,92.118,50.88769386]
[1773621573486,9.764,92.153,92.118,50.88769386]
[1773621574500,9.765,92.148,92.09,3.38953948]
[1773621574795,9.765,92.148,92.091,59.10050968]
[1773621578490,9.765,92.148,92.101,59.09828827]
[1773621579090,9.764,92.156,92.101,59.09828827]
[1773621579293,34.18,92.16,92.111,59.09828827]
[1773621580392,65.38953948,92.18,92.12,3.38953948]
[1773621580699,65.38953948,92.18,92.131,59.09599783]
[1773621580700,62.0,92.18,92.131,59.09599783]
[1773621581200,65.38953948,92.18,92.131,59.09599783]
[1773621582600,9.762,92.172,92.131,59.09599783]
[1773621585300,3.38953948,92.17,92.131,59.09599783]
[1773621585605,3.38953948,92.17,92.111,59.0987228]
[1773621585904,9.764,92.158,92.111,59.0987228]
[1773621586303,3.38953948,92.16,92.111,59.0987228]
[1773621586811,3.38953948,92.13,92.072,59.25101776]
[1773621586997,62.0,92.18,92.072,59.25101776]
[1773621586998,3.38953948,92.11,92.072,59.25101776]
[1773621587702,9.769,92.107,92.035,48.67219483]
[1773621587903,34.18,92.123,92.04,3.38953948]
[1773621587904,3.38953948,92.1,92.04,3.38953948]
[1773621588098,3.38953948,92.11,92.04,3.38953948]
[1773621589506,3.38953948,92.11,92.05,3.38953948]
[1773621589707,3.38953948,92.11,92.051,50.99132948]
[1773621590208,3.38953948,92.1,92.051,50.99132948]
[1773621590705,9.769,92.108,92.051,50.99132948]
[1773621590904,3.38953948,92.1,92.051,50.99132948]
[1773621592110,3.38953948,92.09,92.051,50.99132948]
[1773621593509,3.38953948,92.09,92.031,51.1274939]
[1773621593810,3.38953948,92.08,92.031,51.1274939]
[1773621594316,9.773,92.076,92.031,51.1274939]
[1773621594805,62.0,92.07,92.031,51.1274939]
[1773621597517,65.38953948,92.07,92.016,51.23988277]
[1773621597910,3.38953948,92.07,92.016,51.23988277]
[1773621598313,9.774,92.066,92.016,51.23988277]
[1773621599019,9.773,92.077,92.016,51.23988277]
[1773621599614,9.774,92.064,92.016,51.23988277]
[1773621600220,3.38953948,92.09,92.031,51.32190796]
[1773621600417,3.38953948,92.11,92.041,51.32522385]
[1773621600815,62.0,92.1,92.041,61.10122385]
[1773621601022,3.38953948,92.12,92.061,51.32522385]
[1773621601220,34.18,92.138,92.071,51.32522385]
[1773621601423,9.766,92.136,92.081,51.32553736]
[1773621601616,3.38953948,92.16,92.101,51.32553736]
[1773621601820,3.38953948,92.14,92.085,51.32553736]
[1773621602024,3.38953948,92.12,92.07,51.32553736]
[1773621602626,3.38953948,92.15,92.091,51.1208806]
[1773621603027,3.38953948,92.13,92.091,51.1208806]
[1773621603226,3.38953948,92.12,92.075,51.1208806]
[1773621603428,3.38953948,92.11,92.051,51.03505201]
[1773621604119,65.38953948,92.12,92.051,51.03505201]
[1773621604318,3.38953948,92.11,92.051,51.03505201]
[1773621604526,3.38953948,92.09,92.051,51.03505201]
[1773621604722,70.08860207,92.12,92.051,51.03505201]
[1773621604923,9.77,92.1,92.051,51.03505201]
[1773621605125,62.0,92.12,92.051,51.03505201]
[1773621605728,9.768,92.118,92.051,51.03505201]
[1773621605925,62.0,92.12,92.051,51.03505201]
[1773621607029,9.769,92.109,92.051,51.03505201]
[1773621609933,62.0,92.12,92.051,51.03505201]
[1773621609934,9.77,92.1,92.051,51.03505201]
[1773621610728,9.771,92.092,92.051,51.03505201]
[1773621611128,9.772,92.083,92.051,51.03505201]
[1773621611334,9.772,92.083,92.012,9.779]
[1773621611335,9.772,92.083,92.013,51.09323658]
[1773621611935,9.772,92.083,92.015,51.07663462]
[1773621612138,66.73,92.092,92.015,51.07663462]
[1773621613627,9.774,92.065,92.015,51.07663462]
[1773621614031,66.73,92.092,92.015,51.07663462]
[1773621614228,9.775,92.054,91.983,51.0729395]
[1773621614428,34.18,92.067,91.983,51.0729395]
[1773621614634,9.777,92.035,91.983,51.0729395]
[1773621615833,9.778,92.026,91.983,51.0729395]
[1773621616538,9.777,92.037,91.983,51.0729395]
[1773621617134,9.776,92.047,91.983,51.0729395]
[1773621618234,62.0,92.04,91.983,51.0729395]
[1773621618637,9.777,92.037,91.983,51.0729395]
[1773621621145,70.08530248,92.04,91.953,51.12086413]
[1773621621344,34.18,92.039,91.953,51.12086413]
[1773621621535,8.08530248,92.02,91.931,51.08620357]
[1773621622645,9.782,91.99,91.931,51.08620357]
[1773621623438,34.18,91.995,91.931,51.08620357]
[1773621624044,9.782,91.983,91.931,51.08620357]
[1773621626139,8.08530248,91.98,91.87,8.08530248]
[1773621626342,34.18,91.979,91.87,8.08530248]
[1773621626641,9.786,91.955,91.887,9.793]
[1773621626836,34.18,91.979,91.87,8.08530248]
[1773621627242,34.18,91.979,91.862,1.89309456]
[1773621627243,9.787,91.943,91.871,9.794]
[1773621627437,8.08530248,91.94,91.82,8.08530248]
[1773621627642,8.08530248,91.96,91.84,8.08530248]
[1773621627843,9.788,91.929,91.84,8.08530248]
[1773621628044,8.08530248,91.94,91.84,8.08530248]
[1773621628242,34.18,91.939,91.841,43.55207986]
[1773621628746,8.08530248,91.92,91.841,43.55207986]
[1773621629142,9.79,91.91,91.841,43.55207986]
[1773621629746,62.0,91.9,91.841,43.55207986]
[1773621630048,8.08530248,91.96,91.841,43.55207986]
[1773621630348,34.2,91.959,91.841,43.55207986]
[1773621630938,9.786,91.945,91.875,20.775929]
[1773621631243,34.2,91.955,91.875,20.775929]
[1773621631439,8.08530248,91.94,91.844,20.71595043]
[1773621631642,34.2,91.939,91.844,20.71595043]
[1773621632039,9.791,91.904,91.844,20.71595043]
[1773621632645,9.79,91.916,91.844,20.71595043]
[1773621633048,34.2,91.939,91.844,20.71595043]
[1773621633247,9.79,91.917,91.846,20.72948136]
[1773621633949,34.2,91.939,91.846,20.72948136]
[1773621634449,34.2,91.938,91.846,20.72948136]
[1773621635046,9.79,91.908,91.846,20.72948136]
[1773621635446,34.2,91.938,91.846,20.72948136]
[1773621635744,34.2,91.937,91.846,20.72948136]
[1773621635953,1.89380541,91.953,91.847,20.58276747]
[1773621636145,34.2,91.952,91.847,20.58276747]
[1773621636543,1.89348082,91.973,91.88,8.08530248]
[1773621636852,34.2,91.974,91.881,20.38152389]
[1773621637151,32.55,91.973,91.881,20.38152389]
[1773621637455,9.785,91.956,91.889,20.38152389]
[1773621637952,34.2,91.991,91.891,20.29894668]
[1773621638149,34.2,91.992,91.891,20.29894668]
[1773621638653,9.783,91.983,91.914,20.21530198]
[1773621639755,9.783,91.983,91.916,20.02500141]
[1773621640253,9.784,91.973,91.916,20.02500141]
[1773621640845,34.2,91.992,91.916,20.02500141]
[1773621641454,34.2,91.992,91.9,8.08530248]
[1773621641455,34.2,91.992,91.918,20.02413796]
[1773621642257,9.782,91.988,91.921,20.02413796]
[1773621643351,32.55,92.019,91.92,9.789]
[1773621643352,8.08530248,92.02,91.924,19.95240988]
[1773621643552,34.2,92.019,91.924,19.95240988]
[1773621644451,8.08530248,92.0,91.924,19.95240988]
[1773621644849,8.08530248,92.0,91.907,19.95291939]
[1773621645351,9.783,91.978,91.907,19.95291939]
[1773621646758,9.783,91.978,91.91,19.92318934]
[1773621646960,66.73,91.987,91.91,19.92318934]
[1773621647253,34.18,91.987,91.912,19.92318934]
[1773621648556,9.782,91.986,91.914,19.93865983]
[1773621649459,34.18,91.987,91.918,19.879921]
[1773621650652,9.782,91.986,91.922,19.88426034]
[1773621651058,34.18,91.987,91.922,19.88426034]
[1773621651254,34.18,91.987,91.925,19.86800254]
[1773621651861,32.55,92.013,91.925,19.86800254]
[1773621652057,32.55,92.018,91.925,19.86800254]
[1773621652355,9.781,91.998,91.938,19.98984556]
[1773621653263,34.18,92.017,91.94,19.98984556]
[1773621653959,9.779,92.014,91.952,19.95125853]
[1773621658365,9.78,92.005,91.952,19.95125853]
[1773621659067,9.782,91.986,91.934,19.90721776]
[1773621659560,9.784,91.971,91.918,19.91295489]
[1773621660156,34.18,91.988,91.918,19.91295489]
[1773621660157,9.783,91.98,91.918,19.91295489]
[1773621660361,34.18,91.988,91.918,9.91295489]
[1773621660762,34.18,91.988,91.919,9.789]
[1773621660960,34.18,91.988,91.918,9.91295489]
[1773621660961,10.85,92.028,91.918,9.91295489]
[1773621661159,66.73,92.027,91.918,9.91295489]
[1773621661771,8.08530248,92.03,91.91,8.08530248]
[1773621661964,32.55,92.028,91.91,8.08530248]
[1773621662268,32.55,92.028,91.911,14.87325495]
[1773621662461,9.78,92.005,91.943,9.787]
[1773621662659,9.78,92.005,91.944,14.87325495]
[1773621663869,9.779,92.014,91.955,14.87931532]
[1773621667963,9.778,92.022,91.959,14.81890698]
[1773621670176,32.55,92.029,91.959,14.81890698]
[1773621671270,32.55,92.029,91.899,20.17829224]
[1773621671271,32.55,92.029,91.945,14.82656387]
[1773621671472,32.55,92.015,91.945,14.82656387]
[1773621671670,32.55,92.013,91.945,14.82656387]
[1773621672973,9.782,91.989,91.945,14.82656387]
[1773621673974,34.18,91.998,91.945,14.82656387]
[1773621674374,34.18,91.998,91.933,9.788]
[1773621674375,9.784,91.967,91.921,14.92025077]
[1773621682279,9.784,91.967,91.902,9.791]
[1773621682476,9.784,91.967,91.909,15.41500949]
[1773621683084,9.785,91.959,91.909,15.41500949]
[1773621686886,9.786,91.95,91.909,15.41500949]
[1773621688183,9.785,91.959,91.909,15.41500949]
[1773621691086,32.55,91.976,91.909,15.41500949]
[1773621691290,34.18,91.977,91.909,15.41500949]
[1773621691988,8.10203991,91.98,91.909,15.41500949]
[1773621692188,34.2,91.979,91.909,15.41500949]
[1773621692692,9.784,91.967,91.911,15.24248059]
[1773621693391,3.40650143,91.97,91.913,9.79]
[1773621693591,34.2,91.973,91.921,15.25451984]